[Event "Vezerkepzo GM May 2022"]
[Site "Budapest"]
[Date "2022.05.18"]
[Round "1.1"]
[White "Karavade, Eesha"]
[Black "Turzo, Attila"]
[Result "1/2-1/2"]
[ECO "D11"]
[WhiteElo "2348"]
[BlackElo "2338"]
[Annotator "TA"]
[PlyCount "102"]
[EventDate "2022.05.18"]
[EventType "tourn"]
[EventCountry "HUN"]
[SourceTitle "playchess.com"]
[Source "ChessBase"]
[SourceQuality "1"]
[TimeControl "5400+30"]

{[%evp 19,102,0,3,-12,-12,-29,-24,-8,9,-26,0,-9,0,0,0,-6,0,0,2,-9,0,0,0,0,0,-6,37,16,44,22,31,4,4,15,36,38,38,38,38,28,37,41,33,37,41,47,41,22,22,22,22,11,18,11,22,22,22,22,22,16,16,16,21,0,0,0,0,0,0,0,0,0,0,0,0,0,0,0,0,-29,2,0,0,-29,9]} 1. d4 {[%emt 0:00:07]} d5 {[%emt 0:09:02]} 2. c4 {[%emt 0:00:24]} c6 {[%emt 0:00:11]} 3. Nf3 {[%emt 0:00:29][%cal Bg1f3,Bf3d2,Bd2e4][%mdl 32]} Nf6 {[%emt 0:00:09]} 4. g3 {[%emt 0:00:47]} Bf5 {[%emt 0:00:18]} 5. Bg2 {[%emt 0:00:08]} e6 {[%emt 0:00:12]} 6. Nc3 {[%emt 0:00:11]} h6 {[%emt 0:00:51]} 7. O-O {[%emt 0:04:49]} Be7 {[%emt 0:01:15]} 8. Nd2 {[%emt 0:06:30]} O-O {[%emt 0:02:45]} 9. e4 {[%emt 0:01:30]} dxe4 {[%emt 0:00:06]} 10. Ndxe4 {[%emt 0:00:05]} Nbd7 {[%emt 0:00:15]} 11. Qb3 {[%emt 0:08:05] D11: Slav Defence: 3 Nf3 sidelines and 3...Nf6 4 e3 Bg4.} Qb6 {[%emt 0:02:37]} 12. Qxb6 {[%emt 0:09:00]} Nxb6 {[%emt 0:25:39]} 13. b3 {[%emt 0:00:16]} Rad8 {[%emt 0:00:14] [#]} 14. Rd1 $146 {[%emt 0:07:45]} (14. Nc5 $5 {[%cal Rc5b7]}) ({Predecessor:} 14. Be3 Ng4 15. Rad1 Nxe3 16. fxe3 Bb4 17. Ne2 Nd7 18. h3 Bh7 19. N4c3 Nf6 20. e4 {0-1 (84) Wang,J (1939)-Doknjas,J (2197) Sault Ste Marie 2017}) 14... Nbd7 {[%emt 0:12:57]} 15. Be3 {[%emt 0:05:11]} a6 {[%emt 0:10:16]} 16. h3 {[%emt 0:03:28]} Ba3 {[%emt 0:06:00]} 17. Rf1 {[%emt 0:06:47]} Rfe8 {[%emt 0:07:43]} 18. Rad1 {[%emt 0:04:23]} Bb4 {[%emt 0:02:28]} 19. Bf4 {[%emt 0:00:48]} Nxe4 {[%emt 0:03:06]} 20. Nxe4 {[%emt 0:00:07]} Bxe4 {[%emt 0:00:45]} 21. Bxe4 {[%emt 0:00:03]} Nf6 {[%emt 0:00:42]} 22. Bf3 {[%emt 0:00:54]} Bd6 {[%emt 0:00:12]} 23. Be3 {[%emt 0:00:36]} Rd7 {[%emt 0:00:39]} 24. Kg2 {[%emt 0:01:24]} Red8 {[%emt 0:00:45]} 25. Rb1 {[%emt 0:03:33]} Bb4 {[%emt 0:02:47]} 26. Rfc1 {[%emt 0:00:02] Against Bc3} Ba5 {[%emt 0:01:50]} 27. b4 {[%emt 0:01:41]} Bb6 {[%emt 0:01:49]} 28. c5 {[%emt 0:02:35]} Bc7 {[%emt 0:01:32]} 29. a4 {[%emt 0:00:06]} Nd5 {[%emt 0:01:44]} 30. b5 {[%emt 0:03:34]} axb5 {[%emt 0:00:06]} 31. axb5 {[%emt 0:00:09]} (31. Bxd5 {looks sharper.} Rxd5 32. axb5 e5 33. dxe5 Bxe5 34. Rc4) 31... e5 {[%emt 0:00:11]} 32. bxc6 {[%emt 0:02:01]} bxc6 {[%emt 0:00:07]} 33. Bxd5 {[%emt 0:00:11]} Rxd5 {[%emt 0:00:13]} 34. dxe5 {[%emt 0:02:09]} Bxe5 {[%emt 0:00:30]} 35. Rb6 {[%emt 0:00:10]} Rc8 $1 {[%emt 0:00:01]} 36. Rc4 {[%emt 0:00:06]} Rd7 {[%emt 0:03:34]} 37. Ra4 {[%emt 0:01:47]} f5 {[%emt 0:00:38]} 38. Raa6 {[%emt 0:01:53]} Rdc7 $1 {[%emt 0:00:12]} 39. Rb3 {[%emt 0:05:07]} Kf7 {[%emt 0:00:24]} 40. Rd3 {[%emt 0:00:39]} Ke6 {[%emt 0:02:02]} 41. f4 {[%emt 0:03:10]} Bf6 {[%emt 0:00:02]} 42. Rd6+ {[%emt 0:02:52]} Kf7 {[%emt 0:00:08]} 43. g4 {[%emt 0:00:13]} Be7 {[%emt 0:01:01]} 44. Rd3 {[%emt 0:00:03]} g6 {[%emt 0:00:38]} 45. Kf3 {[%emt 0:01:16]} Ke6 {[%emt 0:00:55]} 46. Rb3 {[%emt 0:01:10]} Kd5 {[%emt 0:00:18]} 47. Ra4 {[%emt 0:00:35]} Ke6 {[%emt 0:00:48]} 48. Ra6 {[%emt 0:01:03]} Rd7 {[%emt 0:00:18]} 49. Rbb6 {[%emt 0:00:22]} Rdc7 {[%emt 0:00:39]} (49... Rd3 $5 {[%cal Rd3e3]}) 50. Rb3 {[%emt 0:00:21]} Rd7 {[%emt 0:00:35]} 51. Rbb6 {[%emt 0:01:39]} Rdc7 {[%emt 0:00:07] Weighted Error Value: White=0.07 (flawless) /Black=0.05 (flawless)} (51... Rd3 $5 {[%cal Rd3e3]}) 1/2-1/2

[Event "Vezerkepzo GM May 2022"]
[Site "Budapest"]
[Date "2022.05.18"]
[Round "1.4"]
[White "Fule, Simon"]
[Black "Tancsa, Tamas"]
[Result "1-0"]
[ECO "C45"]
[WhiteElo "2297"]
[BlackElo "2091"]
[Annotator "TA"]
[PlyCount "47"]
[EventDate "2022.05.18"]
[EventType "tourn"]
[EventCountry "HUN"]
[SourceTitle "playchess.com"]
[Source "ChessBase"]
[SourceQuality "1"]
[TimeControl "5400+30"]

{[%evp 14,47,0,0,0,-5,-9,-42,-43,-53,-30,-6,217,212,239,229,213,231,225,252,825,828,29989,29990,29990,29991,29991,2060,1904,1864,1667,728,728,728,718,720]} 1. e4 {[%emt 0:00:05]} e5 {[%emt 0:00:01]} 2. Nf3 {[%emt 0:00:10]} Nc6 {[%emt 0:00:06]} 3. d4 {[%emt 0:00:24]} exd4 {[%emt 0:00:07]} 4. Nxd4 {[%emt 0:00:05]} Nf6 {[%emt 0:00:05][%cal Bg8f6,Bf6d5,Bd5b4][%mdl 32]} 5. Nxc6 {[%emt 0:00:14]} bxc6 {[%emt 0:00:02]} 6. e5 {[%emt 0:00:09]} Qe7 {[%emt 0:00:03]} 7. Qe2 {[%emt 0:00:10]} Nd5 {[%emt 0:00:07]} 8. h4 {[%emt 0:00:11]} f6 {[%emt 0:02:13] C45: Scotch Game.} 9. c4 {[%emt 0:01:03]} Ba6 {[%emt 0:01:05]} 10. Rh3 {[%emt 0:00:10][%cal Bh1h3,Bh3a3,Ba3a4,Ba4a7][%mdl 32]} O-O-O {[%emt 0:04:36] Black is slightly better.} 11. Ra3 {[%emt 0:01:19]} Nb4 {[%emt 0:00:25]} 12. Ra4 {[%emt 0:00:12] [#] Hoping for a3.} d5 $2 {[%emt 0:02:57] This move loses the game for Black.} (12... fxe5 $2 13. a3 d5 14. axb4 $18) (12... Qxe5 $11 13. Qxe5 fxe5) 13. a3 $18 {[%emt 0:00:42]} Bxc4 {[%emt 0:03:43]} 14. Qg4+ {[%emt 0:00:12]} Rd7 {[%emt 0:00:00]} 15. axb4 {[%emt 0:00:13] Dancing on a razor blade.} Qxe5+ {[%emt 0:00:15]} 16. Be3 {[%emt 0:00:16] [#]} Bb3 $146 {[%emt 0:08:05]} (16... f5 17. Qf3 Bb3) ({Predecessor:} 16... f5 17. Qf3 Bb5 18. Bxb5 cxb5 19. Rxa7 Bxb4+ 20. Kf1 Rdd8 21. Nc3 Bxc3 22. bxc3 {1-0 (22) Zilka,S (2534)-Vittorino,C (2252) Pardubice 2019}) 17. Rxa7 {[%emt 0:16:52] Ra8+ would kill now.} d4 {[%emt 0:00:12]} 18. Ra8+ {[%emt 0:00:19]} Kb7 {[%emt 0:00:12]} 19. R1a7+ {[%emt 0:00:30]} Kb6 {[%emt 0:00:36]} 20. Qxd7 {[%emt 0:00:37]} (20. Ra6+ $142 Kb7 21. Qxd7 Bxb4+ {[#]} 22. Nc3 $1 {[%mdl 512]} Qc5 23. Bxd4 Bxc3+ 24. bxc3 Re8+ 25. Rxe8 Qe7+ 26. Rxe7 Bc4 27. Bxc4 h6 28. Qxc7#) 20... Bxb4+ {[%emt 0:03:44] White is clearly winning.} 21. Nc3 {[%emt 0:05:34] Intending Ra6+ and mate.} Rxa8 {[%emt 0:10:37]} 22. Qxd4+ {[%emt 0:02:39]} (22. Rxa8 $142 Bd5 23. Re8 dxe3 24. Rxe5 fxe5 25. fxe3) 22... Qxd4 {[%emt 0:00:05]} 23. Bxd4+ {[%emt 0:00:04]} c5 {[%emt 0:00:04]} 24. Bxc5+ {[%emt 0:00:08] Weighted Error Value: White=0.13 (very precise) /Black=0.95} 1-0

[Event "Vezerkepzo GM May 2022"]
[Site "Budapest"]
[Date "2022.05.18"]
[Round "1.5"]
[White "Dudin, Gleb"]
[Black "Berczes, David"]
[Result "1-0"]
[ECO "E11"]
[WhiteElo "2473"]
[BlackElo "2437"]
[Annotator "TA"]
[PlyCount "49"]
[EventDate "2022.05.18"]
[EventType "tourn"]
[EventCountry "HUN"]
[SourceTitle "playchess.com"]
[Source "ChessBase"]
[SourceQuality "1"]
[TimeControl "5400+30"]

{[%evp 11,49,18,27,18,33,29,53,53,62,58,52,52,45,51,40,32,76,77,89,94,159,157,221,147,324,304,332,327,331,238,348,316,452,446,564,539,622,420,1735,1660]} 1. d4 {[%emt 0:01:15]} Nf6 {[%emt 0:00:57]} 2. c4 {[%emt 0:00:35]} e6 {[%emt 0:00:12]} 3. Nf3 {[%emt 0:00:19]} Bb4+ {[%emt 0:00:39]} 4. Bd2 {[%emt 0:00:48]} a5 {[%emt 0:00:45]} 5. a3 {[%emt 0:00:13]} Bxd2+ {[%emt 0:02:36]} 6. Qxd2 {[%emt 0:00:11]} O-O {[%emt 0:00:12]} 7. Nc3 {[%emt 0:00:07] E11: Bogo-Indian.} d6 {[%emt 0:06:56] 7...d5 is the fancy move.} 8. e4 {[%emt 0:06:59]} Nc6 {[%emt 0:00:26]} 9. Rd1 {[%emt 0:02:08] White is slightly better.} Qe7 {[%emt 0:15:38]} 10. Be2 {[%emt 0:00:40]} e5 {[%emt 0:00:22]} 11. dxe5 {[%emt 0:00:08]} Nxe5 {[%emt 0:06:32][%cal Bc6e5,Be5g6,Bg6f4][%mdl 32]} 12. Nd4 {[%emt 0:00:38]} Ng6 {[%emt 0:11:34]} 13. f3 {[%emt 0:04:03] [#]} Nh5 $146 {[%emt 0:06:36]} ({Predecessor:} 13... Bd7 14. O-O Qe5 15. g3 Qc5 16. Kg2 Rfe8 17. Nc2 Qh5 18. Rfe1 Rac8 19. Ne3 Ne5 {1-0 (41) Antonov,V (2344)-Palmateer,C (2269) ICCF email 2016}) 14. O-O {[%emt 0:01:29]} Ngf4 {[%emt 0:03:06]} 15. Rfe1 {[%emt 0:05:03]} Qg5 {[%emt 0:14:49] [#]} (15... Nxe2+ $142 16. Rxe2 (16. Ncxe2 Be6 $14) (16. Qxe2 Bd7 $16) 16... Be6) 16. Bf1 $1 $16 {[%emt 0:00:46]} c6 {[%emt 0:22:32]} (16... h6 $16 17. Nd5 Nxd5) 17. Kh1 {[%emt 0:04:55]} Qh4 $2 {[%emt 0:00:48] A mistake that costs the game.} (17... g6 $16 {was worth a try.} 18. Nde2 Qf6) 18. g4 $18 {[%emt 0:03:06]} Bxg4 {[%emt 0:04:14]} 19. fxg4 {[%emt 0:01:07]} Qxg4 {[%emt 0:00:34]} 20. Qf2 {[%emt 0:00:46] Nf5 is the strong threat.} Rae8 {[%emt 0:00:25]} (20... g6 $142 21. Be2 Nxe2) 21. Nf5 {[%emt 0:03:29]} d5 {[%emt 0:00:35]} (21... Re6 $142 22. Nxd6 b6) 22. cxd5 {[%emt 0:01:44]} cxd5 {[%emt 0:00:08]} 23. Bb5 {[%emt 0:01:48]} Nh3 {[%emt 0:00:53][%cal Rh3f2] [#]} 24. Qg2 {[%emt 0:01:27]} Re5 {[%emt 0:00:29]} (24... Qxg2+ $142 25. Kxg2 N3f4+ 26. Kf1 Re5 27. Nxd5 Nxd5 28. Rxd5 Re6) 25. Nh6+ {[%emt 0:00:10] Weighted Error Value: White=0.17 (very precise) /Black=0.52} 1-0

[Event "Vezerkepzo GM May 2022"]
[Site "Budapest"]
[Date "2022.05.19"]
[Round "2.1"]
[White "Turzo, Attila"]
[Black "Berczes, David"]
[Result "0-1"]
[ECO "B13"]
[WhiteElo "2338"]
[BlackElo "2437"]
[Annotator "TA"]
[PlyCount "72"]
[EventDate "2022.05.18"]
[EventType "tourn"]
[EventCountry "HUN"]
[SourceTitle "playchess.com"]
[Source "ChessBase"]
[SourceQuality "1"]
[TimeControl "5400+30"]

{[%evp 11,72,37,36,29,32,29,35,37,35,30,26,46,40,12,12,0,9,14,16,0,0,0,0,0,0,-3,0,0,0,-4,0,-14,-10,-27,-22,-142,-137,-170,-182,-348,-349,-533,-390,-532,-529,-968,-959,-29991,-29987,-29994,-29995,-29995,-29996,-29996,-29997,-29997,-29996,-29996,-29995,-29995,-29996,-29996,-29991]} 1. e4 {[%emt 0:00:52]} c6 {[%emt 0:20:48]} 2. d4 {[%emt 0:00:16]} d5 {[%emt 0:00:07]} 3. exd5 {[%emt 0:00:12]} cxd5 {[%emt 0:00:08]} 4. Bd3 {[%emt 0:00:10]} Nc6 {[%emt 0:00:34]} 5. c3 {[%emt 0:00:08]} e5 {[%emt 0:02:54]} 6. dxe5 {[%emt 0:00:23]} Nxe5 {[%emt 0:00:03]} 7. Nf3 {[%emt 0:02:02] B13: Caro-Kann: Exchange Variation and Panov-Botvinnik Attack.} Nxd3+ {[%emt 0:20:52]} 8. Qxd3 {[%emt 0:00:18]} Nf6 {[%emt 0:00:09]} 9. O-O {[%emt 0:03:51] White is slightly better.} Be7 {[%emt 0:00:20]} 10. Bg5 {[%emt 0:08:16]} O-O {[%emt 0:00:55]} 11. Nbd2 {[%emt 0:00:27][%cal Bb1d2,Bd2b3,Bb3d4][%mdl 32]} h6 {[%emt 0:01:23]} 12. Bxf6 {[%emt 0:18:11]} Bxf6 {[%emt 0:00:27]} 13. h3 {[%emt 0:00:25]} Be6 {[%emt 0:09:36]} 14. Nb3 {[%emt 0:02:31]} Qb6 {[%emt 0:03:15] [#]} 15. Qd2 $146 {[%emt 0:03:07]} ({Predecessor:} 15. Rfe1 Rfe8 16. Qe3 Qxe3 17. Rxe3 Bf5 18. Rxe8+ Rxe8 19. Re1 Rxe1+ 20. Nxe1 Kf8 21. Nf3 {½-½ (30) Czebe,A (2426)-Ilincic,Z (2411) Budapest 2018}) 15... Rfe8 {[%emt 0:04:54]} 16. Nbd4 {[%emt 0:00:48]} Bd7 {[%emt 0:00:18]} 17. Qc2 {[%emt 0:07:17]} a5 {[%emt 0:16:12]} 18. Rad1 {[%emt 0:05:34]} Qc5 {[%emt 0:05:52]} 19. Rd2 {[%emt 0:04:00]} Qc4 {[%emt 0:05:45]} 20. a3 {[%emt 0:03:30]} Re4 {[%emt 0:02:44]} 21. Qc1 {[%emt 0:08:42]} Rae8 {[%emt 0:01:28]} 22. Rfd1 {[%emt 0:03:00]} Qc8 {[%emt 0:00:52][%cal Od7h3] And now ...Bxh3! would win.} 23. Kh2 {[%emt 0:01:40]} (23. Rd3 $11 {remains equal.}) 23... Bd8 $17 {[%emt 0:00:40][%cal Bf6d8,Bd8c7,Bc7f4][%mdl 32] Black is more active.} 24. Rd3 {[%emt 0:21:47] [#]} Bc7+ $1 {[%emt 0:00:21]} ({Inferior is} 24... Ba4 25. Nd2 $15) 25. g3 $2 {[%emt 0:01:25]} (25. Kg1 {keeps fighting.}) 25... Bxh3 $19 {[%emt 0:00:29] Threatens to win with ...Qg4.} 26. Kg1 {[%emt 0:02:57]} (26. Re1 $142 Bg4 27. Rde3) 26... Qg4 {[%emt 0:01:09][%cal Oc7g3] ( -> ...Bxg3!)} 27. Nh2 {[%emt 0:00:53]} Qg6 {[%emt 0:00:28]} 28. Nb5 {[%emt 0:00:36]} Bf4 {[%emt 0:00:36] A strong pair of Bishops.} 29. Qa1 {[%emt 0:00:35] [#]} Be3 $1 {[%emt 0:00:58][%mdl 512] Black mates.} 30. Nf1 {[%emt 0:00:44] [#]} (30. Rxe3 Rxe3) 30... Bxf2+ $1 {[%emt 0:00:11][%mdl 512]} 31. Kxf2 {[%emt 0:00:06]} Re2+ {[%emt 0:00:04]} 32. Kg1 {[%emt 0:00:18]} Qe4 {[%emt 0:00:17][%csl Ge2,Gh3][%cal Re4g2]} 33. Ne3 {[%emt 0:01:04]} Rg2+ {[%emt 0:00:40]} 34. Kh1 {[%emt 0:00:17]} Rxb2+ {[%emt 0:00:32]} 35. Kg1 {[%emt 0:00:08]} Rg2+ {[%emt 0:00:03]} 36. Kh1 {[%emt 0:00:07]} Ra2+ {[%emt 0:00:04] Weighted Error Value: White=0.72/Black=0.06 (flawless)} 0-1

[Event "Vezerkepzo GM May 2022"]
[Site "Budapest"]
[Date "2022.05.19"]
[Round "2.2"]
[White "Tancsa, Tamas"]
[Black "Dudin, Gleb"]
[Result "0-1"]
[ECO "B33"]
[WhiteElo "2091"]
[BlackElo "2473"]
[Annotator "TA"]
[PlyCount "116"]
[EventDate "2022.05.18"]
[EventType "tourn"]
[EventCountry "HUN"]
[SourceTitle "playchess.com"]
[Source "ChessBase"]
[SourceQuality "1"]
[TimeControl "5400+30"]

{[%evp 22,116,16,0,0,0,0,0,-5,-12,0,0,13,16,16,0,20,0,0,0,0,0,0,-74,-67,-118,-92,-91,-82,-91,-52,-88,-49,-55,-59,-117,-134,-152,-125,-134,-134,-134,-134,-134,-134,-134,-134,-136,-136,-29960,-29963,-5185,0,-29965,0,-7806,0,0,0,0,0,-2,-8,-8,-8,-8,-8,-8,-8,-8,-8,-8,-8,-8,-8,-8,-8,-8,-8,-8,-8,-8,-8,-8,-8,-8,-8,-176,-176,-178,-178,-29985,-29986,-29986,-29987,-29987,-29988]} 1. e4 {[%emt 0:00:07]} c5 {[%emt 0:00:14]} 2. Nf3 {[%emt 0:00:06]} Nc6 {[%emt 0:00:14]} 3. d4 {[%emt 0:00:12]} cxd4 {[%emt 0:00:10]} 4. Nxd4 {[%emt 0:00:05]} Nf6 {[%emt 0:00:09]} 5. Nc3 {[%emt 0:00:05]} e5 {[%emt 0:00:12]} 6. Ndb5 {[%emt 0:00:03]} d6 {[%emt 0:00:15]} 7. Nd5 {[%emt 0:00:05]} Nxd5 {[%emt 0:00:12]} 8. exd5 {[%emt 0:00:04]} Nb8 {[%emt 0:00:13][%cal Bc6b8,Bb8d7,Bd7c5,Bc5e4][%mdl 32]} 9. a4 {[%emt 0:00:33]} Be7 {[%emt 0:00:13]} 10. Be2 {[%emt 0:00:16]} O-O {[%emt 0:00:12]} 11. O-O {[%emt 0:00:06]} Nd7 {[%emt 0:00:14]} 12. Be3 {[%emt 0:00:37] 12.Bd2 gains popularity.} a6 {[%emt 0:03:08] B33: Sicilian: Pelikan and Sveshnikov Variations.} 13. Na3 {[%emt 0:00:09]} f5 {[%emt 0:01:30]} 14. f4 {[%emt 0:00:59]} exf4 {[%emt 0:01:54] The position is equal.} 15. Bxf4 {[%emt 0:00:09]} Nc5 {[%emt 0:07:03]} 16. Nc4 {[%emt 0:01:12]} a5 {[%emt 0:00:22]} 17. c3 {[%emt 0:02:06]} b6 {[%emt 0:01:09]} 18. Qc2 {[%emt 0:03:12] [#]} Qc7 $146 {[%emt 0:07:59]} ({Predecessor:} 18... Ba6 19. Be3 g6 20. b4 Bxc4 21. Bxc4 Ne4 22. Bd3 Bg5 23. Bd4 Re8 24. bxa5 bxa5 {½-½ (41) Pasti,A (2222)-Urh,Z (2187) Budapest 2021}) 19. b4 {[%emt 0:06:11]} Ne4 {[%emt 0:13:20]} 20. Be3 {[%emt 0:00:33]} Rb8 {[%emt 0:00:24]} 21. Bd3 {[%emt 0:03:24]} Bf6 {[%emt 0:04:33]} 22. bxa5 {[%emt 0:02:35]} ({Of course not} 22. Bxe4 Qxc4 23. Bd3 (23. Bxf5 $2 Bxf5 24. Rxf5 axb4 $17) 23... Qxc3 $17) (22. b5 $11 {remains equal.}) 22... bxa5 $17 {[%emt 0:02:05]} 23. Bxe4 {[%emt 0:00:36]} (23. Rac1 $15) 23... Qxc4 {[%emt 0:07:00]} 24. Bxf5 {[%emt 0:00:14]} Bxf5 {[%emt 0:00:25]} 25. Rxf5 {[%emt 0:00:11]} Rfe8 {[%emt 0:05:50]} ({Reject} 25... Qxc3 $6 26. Qxc3 Bxc3 27. Rxf8+ Kxf8 28. Rc1 $11) 26. Bf2 {[%emt 0:08:03]} Re2 {[%emt 0:08:50] Black is more active.} 27. Rf4 $1 {[%emt 0:02:03]} Qxc3 {[%emt 0:14:28]} 28. Qxc3 {[%emt 0:04:03]} (28. Qxe2 $15 Qxa1+ 29. Be1) 28... Bxc3 {[%emt 0:00:09]} 29. Rf1 {[%emt 0:00:04]} h5 {[%emt 0:14:26]} 30. Bg3 {[%emt 0:27:44]} Be5 $36 {[%emt 0:02:48][%mdl 2048] Black is in control.} 31. Rf5 {[%emt 0:00:23]} Bxg3 {[%emt 0:01:25]} 32. hxg3 {[%emt 0:00:42][%mdl 4096] Endgame KRR-KRR} Rbb2 {[%emt 0:00:20]} 33. R5f2 {[%emt 0:02:33]} Rxf2 {[%emt 0:03:19]} 34. Rxf2 {[%emt 0:00:05] KR-KR} Rb4 {[%emt 0:01:56]} 35. Rf4 $2 {[%emt 0:03:45][%mdl 8192] [#]} (35. Re2 $17) 35... Rxf4 $1 {[%emt 0:00:47]} 36. gxf4 {[%emt 0:00:56] KP-KP} Kf7 {[%emt 0:00:05]} 37. Kf2 $2 {[%emt 0:04:24][%mdl 8192]} (37. Kh2 $11) 37... Kf6 {[%emt 0:00:13]} (37... g5 $142 38. Kg3 Kf6 39. fxg5+ Kxg5 40. Kh3 h4 41. Kh2 Kg4 42. Kg1 Kf5 43. Kh1 Kf4 44. Kg1 Ke4 45. Kh1 Kxd5 46. Kg1 Kd4 47. Kh2 d5 48. g4 hxg3+ 49. Kxg3 Kc3 50. Kf4 d4 51. Kg4 d3 52. Kf3 d2 53. Ke2 Kc2 54. Kf3 d1=Q+ 55. Ke4 Qd6 56. Kf5 Kd2 57. Ke4 Ke2 58. Kf5 Kf3 59. Kg5 Qe6 60. Kh5 Kf4 61. Kh4 Qh6#) 38. Kg3 $1 $19 {[%emt 0:00:05] [#]} Kf5 $2 {[%emt 0:00:49]} (38... g5 $1 $19 39. Kf3 gxf4 40. Kxf4 Kg6) 39. Kh4 $1 $11 {[%emt 0:00:12]} Kxf4 {[%emt 0:00:52]} 40. Kxh5 {[%emt 0:00:14] K3P-K3P} Kf5 {[%emt 0:00:32]} 41. g3 $1 {[%emt 0:00:32]} Ke5 {[%emt 0:00:28]} 42. Kg6 {[%emt 0:00:42]} Kxd5 {[%emt 0:00:13]} 43. Kxg7 {[%emt 0:00:06] KPP-KPP} Kc5 {[%emt 0:00:48]} 44. g4 {[%emt 0:01:44]} d5 {[%emt 0:00:03]} 45. g5 {[%emt 0:00:17]} d4 {[%emt 0:00:06]} 46. g6 {[%emt 0:00:07]} d3 {[%emt 0:00:03]} 47. Kf6 {[%emt 0:00:03]} d2 {[%emt 0:00:23]} 48. g7 {[%emt 0:00:05]} d1=Q {[%emt 0:00:08]} 49. g8=Q {[%emt 0:00:37]} Qxa4 {[%emt 0:02:17] KQ-KQ} 50. Qg5+ {[%emt 0:00:53]} Kc6 {[%emt 0:00:27] ...Qd4+ is the strong threat.} 51. Qg2+ {[%emt 0:00:08]} Kb6 {[%emt 0:00:25] ( -> ...Qc6+)} 52. Qf2+ {[%emt 0:01:05]} Ka6 {[%emt 0:00:15]} 53. Ke5 $1 {[%emt 0:00:10]} Qc4 {[%emt 0:00:31] Strongly threatening ...a4.} 54. Kf6 $2 {[%emt 0:03:48]} (54. Qd4 $11 {and White has nothing to worry.} Kb5 55. Qb2+ Kc5 56. Qf2+ Kb4 57. Qb2+ Kc5 58. Qf2+ Kb5 59. Qb2+ Kc6 60. Qd4) 54... a4 $19 {[%emt 0:00:29] Threatens to win with ...a3.} 55. Qb2 {[%emt 0:01:00]} Qc6+ {[%emt 0:00:26]} 56. Ke5 $2 {[%emt 0:00:53]} (56. Kf5 $19) 56... Qb5+ {[%emt 0:00:09] Black mates.} 57. Qxb5+ {[%emt 0:00:04]} Kxb5 {[%emt 0:00:06]} 58. Kd4 {[%emt 0:00:01]} Kb4 {[%emt 0:00:09] Weighted Error Value: White=0.69/Black=0.30} 0-1